bitfinex/quotes_SOLUSD_20230112
["timestamp","ask_amount","ask_price","bid_price","bid_amount"]
[1673553906606,20.0,16.556,16.541,20.0]
[1673553907263,45.31,16.555,16.541,20.0]
[1673553907458,45.31,16.555,16.54,24.78]
[1673553907884,20.0,16.554,16.54,24.78]
[1673553908096,45.31,16.553,16.54,24.78]
[1673553908313,153.7022,16.553,16.54,24.78]
[1673553908633,20.0,16.552,16.54,24.78]
[1673553908947,20.0,16.55,16.54,24.78]
[1673553909161,19.5,16.55,16.54,24.78]
[1673553910740,19.5,16.55,16.541,17.0]
[1673553918394,45.32,16.549,16.541,17.0]
[1673553918598,20.0,16.548,16.541,17.0]
[1673553919341,20.0,16.548,16.53,24.78]
[1673553919556,20.0,16.546,16.531,20.0]
[1673553920919,20.0,16.546,16.531,38.75725104]
[1673553921127,20.0,16.546,16.531,20.0]
[1673553921347,20.0,16.546,16.532,18.92]
[1673553921542,20.0,16.546,16.533,20.0]
[1673553921744,20.0,16.546,16.534,17.0]
[1673553921958,20.0,16.546,16.535,20.0]
[1673553922184,20.0,16.546,16.536,17.0]
[1673553922396,20.0,16.546,16.537,20.0]
[1673553922612,20.0,16.546,16.538,17.0]
[1673553922822,20.0,16.546,16.539,20.0]
[1673553923030,20.0,16.546,16.537,20.0]
[1673553923232,45.34,16.545,16.537,20.0]
[1673553923444,20.0,16.544,16.531,20.0]
[1673553924172,20.0,16.546,16.531,20.0]
[1673553924606,20.0,16.546,16.532,18.92]
[1673553925136,20.0,16.546,16.533,20.0]
[1673553925349,20.0,16.546,16.534,17.0]
[1673553925554,20.0,16.546,16.535,20.0]
[1673553925868,20.0,16.548,16.536,17.0]
[1673553926189,45.31,16.555,16.54,24.77]
[1673553926408,45.31,16.555,16.541,17.0]
[1673553926588,173.7022,16.553,16.541,35.75725104]
[1673553926792,173.7022,16.553,16.542,18.75725104]
[1673553927003,45.31,16.553,16.543,17.0]
[1673553927238,139.0617,16.558,16.544,20.96]
[1673553927436,139.0617,16.558,16.545,17.0]
[1673553927638,139.0617,16.558,16.546,20.0]
[1673553927968,139.0617,16.558,16.547,17.0]
[1673553928164,139.0617,16.558,16.548,20.0]
[1673553928377,139.0617,16.558,16.549,17.0]
[1673553931525,45.3,16.557,16.549,17.0]
[1673553932256,139.0617,16.558,16.548,20.0]
[1673553932483,20.0,16.556,16.543,20.0]
[1673553932700,45.31,16.555,16.541,20.0]
[1673553933337,45.31,16.555,16.542,18.75725104]
[1673553933551,20.0,16.556,16.543,17.0]
[1673553933876,20.0,16.556,16.544,38.75725104]
[1673553934067,20.0,16.556,16.545,17.0]
[1673553934277,45.3,16.557,16.546,20.0]
[1673553934496,45.3,16.557,16.547,17.0]
[1673553934701,45.3,16.557,16.548,20.0]
[1673553934928,119.0617,16.558,16.549,17.0]
[1673553935119,119.0617,16.558,16.548,38.75725104]
[1673553935451,20.0,16.556,16.548,20.0]
[1673553935664,45.31,16.555,16.542,18.75725104]
[1673553935979,45.31,16.555,16.54,25.08]
[1673553936290,20.0,16.554,16.54,25.08]
[1673553936501,45.31,16.553,16.54,25.08]
[1673553936910,45.31,16.553,16.541,17.0]
[1673553937136,45.31,16.553,16.54,25.08]
[1673553937327,20.0,16.552,16.54,25.08]
[1673553937659,20.0,16.55,16.53,124.48]
[1673553937869,45.32,16.549,16.534,18.75725104]
[1673553938919,45.32,16.549,16.535,17.0]
[1673553939134,45.32,16.549,16.536,20.0]
[1673553939320,45.32,16.549,16.537,17.0]
[1673553939657,45.32,16.549,16.538,20.0]
[1673553939855,45.32,16.549,16.539,17.0]
[1673553940065,20.0,16.548,16.539,17.0]
[1673553940271,45.33,16.547,16.539,17.0]
[1673553940508,45.33,16.547,16.536,20.0]
[1673553940693,45.33,16.547,16.531,20.0]
[1673553940902,45.33,16.547,16.531,38.75725104]
[1673553941111,20.0,16.546,16.532,18.75725104]
[1673553941322,20.0,16.544,16.533,20.0]
[1673553941533,45.34,16.543,16.533,20.0]
[1673553941736,45.34,16.543,16.534,17.0]
[1673553941951,45.34,16.543,16.535,20.0]
[1673553942264,45.34,16.543,16.536,17.0]
[1673553942817,44.84,16.543,16.537,20.0]
[1673553943207,44.84,16.543,16.538,17.0]
[1673553943418,44.84,16.543,16.539,20.0]
[1673553943838,20.0,16.544,16.539,20.0]
[1673553944277,20.0,16.544,16.531,20.0]
[1673553944489,45.34,16.543,16.53,25.08]
[1673553944904,20.0,16.542,16.531,17.0]
[1673553945117,45.35,16.541,16.531,17.0]
[1673553945325,20.0,16.54,16.531,17.0]
[1673553945537,20.0,16.54,16.53,25.08]
[1673553945746,45.35,16.539,16.526,18.75725104]
[1673553946068,20.0,16.538,16.527,20.0]
[1673553946266,45.36,16.537,16.527,20.0]
[1673553946480,45.36,16.537,16.527,38.75725104]
[1673553946905,45.36,16.537,16.528,35.75725104]
[1673553947121,45.36,16.537,16.529,20.0]
[1673553947325,45.36,16.537,16.53,17.0]
[1673553947861,20.0,16.538,16.531,18.75725104]
[1673553948073,20.0,16.541,16.532,17.0]
[1673553948476,20.0,16.541,16.532,35.75725104]
[1673553948995,45.35,16.54,16.532,17.0]
[1673553949209,20.0,16.539,16.531,17.0]
[1673553949439,20.0,16.539,16.53,17.0]
[1673553950177,20.0,16.537,16.53,17.0]
[1673553950361,20.0,16.537,16.529,20.0]
[1673553950571,45.36,16.536,16.521,20.0]
[1673553950781,45.36,16.536,16.524,18.75725104]
[1673553951014,45.36,16.536,16.525,20.0]
[1673553951224,45.36,16.536,16.521,20.0]
[1673553951971,45.36,16.536,16.521,38.75725104]
[1673553953204,20.0,16.535,16.521,38.75725104]
[1673553953849,20.0,16.535,16.522,17.0]
[1673553954033,20.0,16.535,16.523,20.0]
[1673553954254,20.0,16.535,16.524,17.0]
[1673553954466,20.0,16.535,16.525,20.0]
[1673553954700,20.0,16.535,16.526,17.0]
[1673553955121,20.0,16.535,16.527,20.0]
[1673553955329,45.37,16.534,16.513,31.35812655]
[1673553955520,20.0,16.533,16.51,124.56]
[1673553955864,45.37,16.532,16.513,18.75725104]
[1673553956052,20.0,16.531,16.513,18.75725104]
[1673553956266,45.38,16.53,16.513,18.75725104]
[1673553956685,45.38,16.53,16.514,20.0]
[1673553957107,45.38,16.53,16.515,18.75725104]
[1673553957746,20.0,16.531,16.52,24.7]
[1673553957943,110.7481,16.534,16.521,17.0]
[1673553958150,110.7481,16.534,16.521,35.75725104]
[1673553958358,45.35,16.54,16.522,18.75725104]
[1673553958572,158.9279,16.54,16.523,18.92]
[1673553958790,158.9279,16.54,16.53,24.65]
[1673553959209,158.9279,16.54,16.523,37.0]
[1673553959414,65.36,16.538,16.523,37.0]
[1673553961219,20.0,16.535,16.523,37.0]
[1673553961618,20.0,16.535,16.523,20.0]
[1673553961831,45.37,16.534,16.523,20.0]
[1673553962042,45.37,16.534,16.521,20.0]
[1673553962775,45.37,16.534,16.51,124.22]
[1673553962985,20.0,16.533,16.515,18.75725104]
[1673553963320,20.0,16.531,16.515,18.75725104]
[1673553963509,160.1493,16.53,16.515,18.75725104]
[1673553964568,160.1493,16.53,16.52,24.7]
[1673553964774,114.7693,16.53,16.52,24.7]
[1673553965205,65.36,16.537,16.521,35.75725104]
[1673553965423,162.9754,16.537,16.522,0.96]
[1673553965634,117.6154,16.537,16.523,0.96]
[1673553965822,117.6154,16.537,16.523,36.71725104]
[1673553966029,117.6154,16.537,16.524,19.71725104]
[1673553966238,117.6154,16.537,16.525,17.0]
[1673553966463,117.6154,16.537,16.525,35.75725104]
[1673553966787,117.6154,16.537,16.526,38.75725104]
[1673553966997,117.6154,16.537,16.527,17.0]
[1673553967206,117.6154,16.537,16.528,20.0]
[1673553967420,117.6154,16.537,16.529,17.0]
[1673553968659,45.36,16.536,16.529,17.0]
[1673553969300,45.36,16.536,16.528,20.0]
[1673553969510,45.36,16.536,16.529,17.0]
[1673553969719,45.36,16.536,16.53,17.0]
[1673553971099,45.36,16.536,16.524,20.0]
[1673553972252,45.36,16.536,16.525,18.75725104]
[1673553972468,117.6154,16.537,16.526,17.0]
[1673553972687,117.6154,16.537,16.527,20.0]
[1673553972994,117.6154,16.537,16.528,17.0]
[1673553973201,117.6154,16.537,16.529,20.0]
[1673553973412,117.6154,16.537,16.53,17.0]
[1673553973807,117.6154,16.537,16.527,20.0]
[1673553974019,117.6154,16.537,16.526,20.0]
[1673553974262,45.36,16.536,16.526,20.0]
[1673553975293,45.36,16.536,16.527,17.0]
[1673553975493,117.6154,16.537,16.528,20.0]
[1673553975702,117.6154,16.537,16.529,17.0]
[1673553976557,45.36,16.536,16.529,17.0]
[1673553979403,45.36,16.536,16.528,20.0]
[1673553979601,45.36,16.536,16.521,20.0]
[1673553979812,20.0,16.535,16.521,20.0]
[1673553980031,45.37,16.534,16.521,20.0]
[1673553980245,45.37,16.534,16.521,38.75725104]
[1673553980452,45.37,16.534,16.521,20.0]
[1673553980665,44.87,16.534,16.521,20.0]
[1673553980985,44.87,16.534,16.521,38.75725104]
[1673553981704,44.87,16.534,16.522,17.0]
[1673553982034,44.87,16.534,16.523,20.0]
[1673553982247,44.87,16.534,16.524,17.0]
[1673553982646,44.87,16.534,16.525,20.0]
[1673553982859,44.87,16.534,16.526,17.0]
[1673553983272,65.36,16.535,16.527,20.0]
[1673553983484,65.36,16.535,16.528,17.0]
[1673553983715,65.36,16.535,16.529,20.0]
[1673553984113,65.36,16.535,16.52,124.12]
[1673553984114,65.36,16.535,16.521,20.0]
[1673553985490,65.36,16.535,16.522,17.0]
[1673553985821,65.36,16.535,16.523,20.0]
[1673553986017,65.36,16.535,16.524,17.0]
[1673553986228,65.36,16.535,16.525,20.0]
[1673553986450,65.36,16.535,16.526,17.0]
[1673553986657,65.36,16.535,16.51,124.78]
[1673553986980,20.0,16.533,16.511,18.75725104]
[1673553987175,45.37,16.532,16.511,18.75725104]
[1673553987387,20.0,16.531,16.511,18.75725104]
[1673553987594,45.38,16.53,16.511,18.75725104]
[1673553987798,20.0,16.529,16.511,18.75725104]
[1673553988011,45.38,16.528,16.511,18.75725104]
[1673553988231,45.38,16.528,16.512,17.0]
[1673553988764,45.38,16.528,16.513,18.75725104]
[1673553988960,45.38,16.528,16.514,17.0]
[1673553989171,45.38,16.528,16.515,20.0]
[1673553989394,45.38,16.528,16.516,17.0]
[1673553989595,45.38,16.528,16.517,20.0]
[1673553989802,45.38,16.528,16.518,17.0]
[1673553990222,45.38,16.528,16.519,20.0]
[1673553990437,45.38,16.528,16.52,17.0]
[1673553990991,20.0,16.527,16.52,17.0]
[1673553991299,45.39,16.526,16.52,17.0]
[1673553991511,45.39,16.526,16.519,20.0]
[1673553991703,45.39,16.526,16.514,18.75725104]
[1673553991704,45.39,16.526,16.51,25.08]
[1673553991913,20.0,16.525,16.51,25.08]
[1673553992128,45.39,16.524,16.51,25.08]
[1673553992325,132.5767,16.523,16.51,25.08]
[1673553992535,45.4,16.522,16.51,25.08]
[1673553992763,20.0,16.521,16.51,25.08]
[1673553992973,45.4,16.52,16.511,17.0]
[1673553993392,45.4,16.52,16.51,25.08]
[1673553994652,45.4,16.52,16.511,17.0]
[1673553995173,20.0,16.532,16.512,20.0]
[1673553995387,113.2044,16.53,16.52,24.77]
[1673553995803,65.38,16.529,16.521,17.0]
[1673553996848,45.38,16.529,16.521,17.0]
[1673553997059,45.37,16.531,16.521,17.0]
[1673553997398,20.0,16.532,16.521,17.0]
[1673553997798,45.37,16.533,16.522,18.75725104]
[1673553998008,154.7786,16.535,16.523,17.0]
[1673553998230,109.4186,16.535,16.53,24.77]
[1673553998439,109.4186,16.535,16.531,17.0]
[1673554000332,109.4186,16.535,16.524,20.0]
[1673554000563,45.37,16.534,16.521,20.0]
[1673554000741,20.0,16.533,16.521,20.0]
[1673554001810,20.0,16.533,16.52,24.82]
[1673554001998,20.0,16.531,16.52,24.82]
[1673554002215,45.38,16.53,16.52,24.82]
[1673554002646,20.0,16.529,16.51,124.78]
[1673554002856,20.0,16.527,16.51,124.78]
[1673554003068,45.39,16.526,16.511,18.75725104]
[1673554003593,45.39,16.526,16.512,20.0]
[1673554004006,45.39,16.526,16.513,18.75725104]
[1673554004346,45.39,16.526,16.514,17.0]
[1673554004547,45.39,16.526,16.513,18.75725104]
[1673554004857,45.39,16.526,16.514,18.75725104]
[1673554005251,45.39,16.526,16.515,20.0]
[1673554005475,45.39,16.526,16.511,38.75725104]
[1673554005689,20.0,16.525,16.511,38.75725104]
[1673554005903,45.39,16.524,16.512,18.75725104]
[1673554006226,45.39,16.524,16.513,20.0]
[1673554006538,45.39,16.524,16.514,17.0]
[1673554006750,45.39,16.524,16.51,25.08]
[1673554006966,161.9798,16.524,16.51,25.08]
[1673554007156,20.0,16.523,16.51,25.08]
[1673554007367,45.4,16.522,16.51,25.08]
[1673554007576,20.0,16.521,16.51,25.08]
[1673554007799,45.4,16.52,16.51,25.08]
[1673554008233,45.4,16.52,16.511,17.0]
[1673554009181,45.4,16.52,16.51,25.08]
[1673554010739,45.4,16.52,16.511,17.0]
[1673554010956,45.4,16.52,16.51,25.08]
[1673554011498,20.0,16.519,16.51,25.08]
[1673554011715,45.41,16.518,16.51,25.08]
[1673554013398,45.41,16.518,16.511,17.0]
[1673554013910,45.41,16.518,16.51,25.08]
[1673554016319,45.41,16.518,16.511,17.0]
[1673554016541,20.0,16.517,16.501,396.6]
[1673554016740,45.42,16.516,16.502,20.0]
[1673554016941,20.0,16.515,16.502,20.0]
[1673554017148,45.42,16.514,16.502,20.0]
[1673554017575,45.42,16.514,16.501,20.0]
[1673554017784,45.42,16.514,16.502,17.0]
[1673554017994,45.42,16.514,16.503,20.0]
[1673554018642,20.0,16.513,16.5,25.08]
[1673554019467,20.0,16.511,16.5,25.08]
[1673554021685,20.0,16.511,16.501,17.0]
[1673554022309,20.0,16.511,16.5,25.08]
[1673554022847,45.43,16.51,16.5,25.08]
[1673554023689,20.0,16.511,16.5,25.08]
[1673554024217,174.1563,16.514,16.501,37.0]
[1673554024405,128.7363,16.514,16.501,37.0]
[1673554026732,45.4,16.522,16.501,37.0]
[1673554026969,65.4,16.52,16.51,24.77]
[1673554027135,65.4,16.52,16.511,17.0]
[1673554031676,20.0,16.52,16.511,17.0]
[1673554033041,45.41,16.519,16.511,17.0]
[1673554033252,65.4,16.52,16.511,17.0]
[1673554035982,65.4,16.52,16.501,20.0]
[1673554036909,65.4,16.52,16.502,18.75725104]
[1673554037120,65.4,16.52,16.503,20.0]
[1673554037327,65.4,16.52,16.504,17.0]
[1673554037750,65.4,16.52,16.505,20.0]
[1673554037962,65.4,16.52,16.506,17.0]
[1673554038167,65.4,16.52,16.507,20.0]
[1673554038589,65.4,16.52,16.505,38.75725104]
[1673554039005,65.4,16.52,16.51,24.77]
[1673554039233,45.4,16.52,16.51,24.77]
[1673554039642,45.4,16.521,16.511,35.75725104]
[1673554040063,157.7339,16.522,16.511,35.75725104]
[1673554040917,45.4,16.522,16.512,18.75725104]
[1673554041131,20.0,16.532,16.512,18.75725104]
[1673554041132,45.39,16.524,16.513,37.0]
[1673554041337,45.39,16.526,16.513,37.0]
[1673554041654,45.39,16.526,16.513,55.75725104]
[1673554042271,45.38,16.528,16.514,0.96]
[1673554042483,45.38,16.528,16.514,1.92]
[1673554042693,45.38,16.529,16.515,18.75725104]
[1673554042999,45.38,16.53,16.516,38.92]
[1673554043215,45.37,16.531,16.517,20.0]
[1673554043432,20.0,16.533,16.518,38.92]
[1673554043433,45.37,16.533,16.518,38.92]
[1673554043631,114.6321,16.539,16.518,73.82473767]
[1673554043632,45.36,16.537,16.518,73.82473767]
[1673554043851,45.36,16.537,16.518,122.68395414]
[1673554044058,45.36,16.537,16.519,83.76395414]
[1673554044261,65.36,16.538,16.52,163.06]
[1673554044469,65.36,16.538,16.52,181.53725104]
[1673554044681,65.36,16.538,16.521,18.75725104]
[1673554044894,65.36,16.538,16.522,17.0]
[1673554045105,65.36,16.538,16.523,20.0]
[1673554045327,65.36,16.538,16.524,17.0]
[1673554045736,65.36,16.538,16.525,20.0]
[1673554045947,65.36,16.538,16.526,17.0]
[1673554046180,65.36,16.538,16.527,20.0]
[1673554046498,65.36,16.538,16.528,17.0]
[1673554046704,65.36,16.538,16.529,20.0]
[1673554047320,45.36,16.538,16.53,17.0]
[1673554047533,159.9821,16.539,16.53,17.0]
[1673554049013,20.0,16.538,16.53,17.0]
[1673554049208,45.36,16.537,16.53,17.0]
[1673554049833,20.0,16.536,16.53,17.0]
[1673554050594,20.0,16.536,16.529,20.0]
[1673554050902,20.0,16.536,16.52,123.86]
[1673554050903,20.0,16.536,16.522,18.75725104]
[1673554051100,20.0,16.536,16.523,20.0]
[1673554051297,20.0,16.536,16.52,24.78]
[1673554051512,45.36,16.535,16.52,24.78]
[1673554052170,20.0,16.534,16.52,24.78]
[1673554052358,45.37,16.533,16.52,24.78]
[1673554052563,165.0392,16.533,16.515,18.75725104]
[1673554052779,165.0392,16.533,16.51,612.92]
[1673554052780,113.5471,16.532,16.51,24.82]
[1673554052992,20.0,16.53,16.511,18.75725104]
[1673554053224,45.38,16.529,16.511,18.75725104]
[1673554053419,45.38,16.529,16.512,20.0]
[1673554053826,45.38,16.529,16.52,24.7]
[1673554054052,20.0,16.53,16.521,17.0]
[1673554054273,113.5471,16.532,16.521,17.0]
[1673554054462,113.5471,16.532,16.522,18.75725104]
[1673554054673,113.5471,16.532,16.523,17.0]
[1673554054882,119.6692,16.533,16.523,17.0]
[1673554055115,119.6692,16.533,16.524,20.0]
[1673554055302,119.6692,16.533,16.525,17.0]
[1673554055720,119.6692,16.533,16.526,20.0]
[1673554055931,45.36,16.535,16.527,17.0]
[1673554056141,45.36,16.535,16.528,20.0]
[1673554056351,45.36,16.535,16.529,17.0]
[1673554057610,45.36,16.535,16.526,20.0]
[1673554057829,45.36,16.535,16.527,17.0]
[1673554058160,45.36,16.535,16.528,20.0]
[1673554058378,45.36,16.535,16.529,17.0]
[1673554059517,45.36,16.535,16.528,20.0]
[1673554059718,45.36,16.535,16.521,20.0]
[1673554059928,20.0,16.534,16.522,17.0]
[1673554060254,45.37,16.533,16.521,17.0]
[1673554060589,161.6066,16.533,16.521,17.0]
[1673554060979,20.0,16.532,16.521,17.0]
[1673554061329,45.37,16.531,16.521,17.0]
[1673554061507,45.37,16.531,16.52,24.82]
[1673554061837,45.37,16.531,16.5,25.06]
[1673554061838,179.4,16.529,16.5,25.06]
[1673554062056,179.4,16.527,16.5,25.06]
[1673554062363,241.79,16.526,16.5,25.06]
[1673554062573,260.54725104,16.526,16.5,25.06]
[1673554062788,218.15725104,16.525,16.5,25.06]
[1673554062984,218.15725104,16.525,16.5,62.57450208]
[1673554062985,45.39,16.524,16.5,62.57450208]
[1673554063201,116.4025,16.523,16.5,118.43725104]
[1673554063403,45.4,16.522,16.501,0.96]
[1673554063931,45.4,16.522,16.502,18.75725104]
[1673554064144,45.4,16.522,16.51,24.86]
[1673554064366,45.4,16.522,16.511,17.0]
[1673554064557,20.0,16.521,16.511,17.0]
[1673554064771,45.4,16.52,16.511,17.0]
[1673554064994,20.0,16.519,16.5,25.06]
[1673554065181,82.41,16.518,16.5,25.06]
[1673554065506,20.0,16.517,16.5,25.06]
[1673554065719,45.42,16.516,16.5,25.06]
[1673554066547,20.0,16.514,16.5,25.06]
[1673554066751,45.42,16.513,16.5,25.06]
[1673554067178,116.7459,16.515,16.501,17.0]
[1673554067395,116.7459,16.515,16.501,35.75725104]
[1673554067611,116.7459,16.515,16.502,20.0]
[1673554067817,45.42,16.514,16.503,17.0]
[1673554068252,45.42,16.514,16.504,20.0]
[1673554068580,45.42,16.514,16.503,17.0]
[1673554068581,45.42,16.514,16.488,111.9731]
[1673554068981,20.0,16.513,16.489,37.51450208]
[1673554069197,45.43,16.512,16.489,18.75725104]
[1673554069839,45.43,16.512,16.49,20.0]
[1673554070150,45.43,16.512,16.491,18.75725104]
[1673554070550,45.43,16.512,16.492,21.92]
[1673554070780,45.43,16.512,16.493,17.0]
[1673554070994,45.43,16.512,16.493,18.75725104]
[1673554071183,45.43,16.512,16.494,38.75725104]
[1673554071394,45.43,16.512,16.494,18.75725104]
[1673554071621,45.43,16.512,16.495,20.0]
[1673554072452,45.43,16.512,16.496,17.0]
[1673554072682,45.43,16.512,16.497,20.0]
[1673554072868,45.43,16.512,16.498,17.0]
[1673554073082,45.43,16.512,16.499,20.0]
[1673554073506,40.0,16.511,16.49,25.08]
[1673554073841,20.0,16.509,16.49,43.83725104]
[1673554074147,65.44,16.508,16.49,25.08]
[1673554074674,20.0,16.506,16.49,25.08]
[1673554074883,45.45,16.505,16.49,25.08]
[1673554075284,108.9761,16.507,16.491,18.92]
[1673554075729,108.9761,16.507,16.492,18.75725104]
[1673554076045,108.9761,16.507,16.493,18.92]
[1673554076228,45.43,16.51,16.494,20.0]
[1673554076441,45.43,16.51,16.5,24.65]
[1673554076652,45.43,16.512,16.5,24.65]
[1673554076877,45.43,16.512,16.501,17.0]
[1673554078556,65.43,16.512,16.5,24.65]
[1673554078759,20.0,16.509,16.494,20.0]
[1673554078969,45.44,16.508,16.491,20.0]
[1673554079517,45.44,16.508,16.492,18.75725104]
[1673554079832,45.44,16.508,16.493,20.0]
[1673554080027,20.0,16.509,16.493,20.0]
[1673554080234,65.43,16.511,16.494,18.75725104]
[1673554080447,65.43,16.511,16.495,17.96]
[1673554080656,65.43,16.511,16.496,20.96]
[1673554080980,20.0,16.519,16.497,17.96]
[1673554081177,20.0,16.519,16.498,20.0]
[1673554081390,20.0,16.519,16.499,18.92]
[1673554081706,20.0,16.519,16.5,20.0]
[1673554082033,20.0,16.519,16.501,37.67725104]
[1673554082244,20.0,16.519,16.502,20.0]
[1673554082457,20.0,16.519,16.503,17.0]
[1673554082770,20.0,16.519,16.51,24.7]
[1673554082980,20.0,16.519,16.511,17.0]
[1673554083191,20.0,16.519,16.511,35.75725104]
[1673554083375,45.4,16.52,16.512,18.75725104]
[1673554083590,137.5649,16.521,16.513,17.0]
[1673554084858,45.4,16.523,16.514,18.75725104]
[1673554085077,45.39,16.527,16.515,17.0]
[1673554085276,45.39,16.527,16.515,37.0]
[1673554085486,45.39,16.527,16.515,55.75725104]
[1673554085691,20.0,16.526,16.515,55.75725104]
[1673554085905,45.39,16.525,16.515,55.75725104]
[1673554086116,20.0,16.526,16.515,55.75725104]
[1673554086975,45.39,16.525,16.515,55.75725104]
[1673554087183,45.39,16.525,16.515,20.0]
[1673554087607,20.0,16.524,16.51,43.57725104]
[1673554087806,45.4,16.523,16.51,43.57725104]
[1673554088534,20.0,16.522,16.51,43.57725104]
[1673554088744,45.4,16.521,16.51,43.57725104]
[1673554088966,20.0,16.52,16.51,43.57725104]
[1673554089287,45.41,16.519,16.51,43.57725104]
[1673554089710,45.41,16.519,16.511,17.0]
[1673554090030,45.41,16.519,16.5,124.3]
[1673554090221,20.0,16.517,16.5,124.3]
[1673554090426,45.42,16.516,16.501,18.75725104]
[1673554090642,20.0,16.515,16.501,18.75725104]
[1673554091073,45.42,16.514,16.501,18.75725104]
[1673554091287,45.42,16.514,16.502,37.0]
[1673554091501,20.0,16.515,16.502,37.0]
[1673554091692,20.0,16.515,16.503,18.75725104]
[1673554091904,20.0,16.515,16.504,17.0]
[1673554092116,20.0,16.515,16.505,20.0]
[1673554092342,20.0,16.515,16.506,17.0]
[1673554092549,20.0,16.515,16.506,35.75725104]
[1673554092763,20.0,16.515,16.507,38.75725104]
[1673554092953,20.0,16.515,16.508,17.0]
[1673554093163,20.0,16.515,16.509,20.0]
[1673554093373,20.0,16.515,16.51,17.0]
[1673554094337,45.42,16.514,16.51,17.0]
[1673554094528,20.0,16.513,16.5,25.08]
[1673554094738,45.43,16.512,16.5,25.08]
[1673554095075,20.0,16.511,16.5,43.83725104]
[1673554095384,45.43,16.51,16.5,43.83725104]
[1673554095705,20.0,16.509,16.5,43.40725104]
[1673554095920,20.0,16.511,16.501,17.0]
[1673554096232,20.0,16.511,16.502,18.75725104]
[1673554096420,20.0,16.511,16.503,17.0]
[1673554096842,20.0,16.511,16.504,18.75725104]
[1673554097072,20.0,16.511,16.505,17.0]
[1673554098209,20.0,16.511,16.504,18.75725104]
[1673554099149,20.0,16.511,16.501,18.75725104]
[1673554099574,20.0,16.511,16.49,124.26]
[1673554099791,164.9679,16.51,16.491,38.75725104]
[1673554100219,164.9679,16.51,16.492,18.75725104]
[1673554100429,20.0,16.509,16.493,20.0]
[1673554100626,20.0,16.509,16.494,18.92]
[1673554100834,20.0,16.509,16.494,37.67725104]